{"text_format":"1","workbook":"xlsx","n_sheets":5,"sheets":["General Information","I.Good Repair Standard","IIa.Evaluation Detail","IIb.Cleanliness Detail","III.Totals and Ranking"],"not_rendered":{"charts":0,"images":0,"macros":1,"external_links":0,"defined_names":7,"comments":0,"pivot_tables":0},"unopened":[],"bounds":{"document_bytes":16777216,"sheet_cells":100000,"rows_first":2000,"rows_last":500,"rows_between":2000,"halvings":0,"cell_chars":16384,"cell_head_chars":4096},"cells_cut":0,"cells_raw":0,"read":"whole","date_system":"1900"}

{"sheet":"General Information","index":0,"n_rows":90,"n_cols":17,"rows_kept":90,"cut":false,"hidden":false,"merged":[[9,9,17,16],[89,9,90,16],[57,0,57,6],[52,14,52,16],[57,9,58,16],[55,15,55,16],[52,0,52,1],[89,0,92,7],[59,0,64,7],[50,10,51,16],[50,9,51,9],[46,9,49,9],[43,9,45,9],[59,9,71,16],[72,9,76,16],[77,9,84,16],[0,7,1,9],[7,0,13,7],[43,10,45,16],[46,10,49,16],[39,0,45,7],[27,0,36,7],[15,0,25,7],[5,0,5,2],[0,0,0,1],[19,9,30,16],[40,9,42,9],[40,10,42,16],[32,9,39,16],[3,15,3,16],[5,9,5,12],[7,9,7,13],[85,9,88,16],[65,0,72,7],[73,0,77,7],[78,0,81,7],[82,0,88,7]]}
["STATE OF CALIFORNIA",null,null,null,null,null,null,null,null,null,null,null,null,null,null,null,"STATE ALLOCATION BOARD"]
["FACILITY INSPECTION TOOL",null,null,null,null,null,null,null,null,null,null,null,null,null,null,null,"OFFICE OF PUBLIC SCHOOL CONSTRUCTION"]
["SCHOOL FACILITY CONDITIONS EVALUATION"]
["(REV 04/22)",null,null,null,null,null,null,null,null,null,null,null,null,null,null,"Page 1 of 7"]
[]
["GENERAL INFORMATION",null,null,null,null,null,null,null,null,"USER INSTRUCTIONS"]
[]
["The Facility Inspection Tool (FIT) has been developed by the Office of Public School Construction to determine if a school facility is in “good repair” as defined by Education Code (EC) Section 17002(d)(1) and to rate the facility pursuant to EC Section 17002(d)(2). The tool is designed to identify areas of a school site that are in need of repair based upon a visual inspection of the site. In addition, the EC specifies the tool should not be used to require capital enhancements beyond the standards to which the facility was designed and constructed.",null,null,null,null,null,null,null,null,"The FIT is comprised of three parts as follows:"]
[]
[null,null,null,null,null,null,null,null,null,"Part I, Good Repair Standard outlines the school facility systems and components, as specified in EC Section 17002(d)(1), that should be considered in the inspection of a school facility to ensure it is maintained in a manner that assures it is clean, safe and functional. Each of the 15 sections in the Good Repair Standard provides a description of a minimum standard of good repair for various school facility categories. Each section also provides examples of clean, safe and functional conditions. The list of examples is not exhaustive. If an evaluator notes a condition that is not mentioned in the examples but constitutes a deficiency, the evaluator can note such deficiency in the applicable category as “other.”"]
[]
[]
[]
[]
[]
["Good repair is defined to mean that the facility is maintained in a manner that ensures that it is clean, safe, and functional. As part of the school accountability report card, school districts and county offices of education are required to make specified assessments of school conditions including the safety, cleanliness, and adequacy of school facilities and needed maintenance to ensure good repair. In addition, beginning with the 2005/2006 fiscal year, school districts and county offices of education must certify that a facility inspection system has been established to ensure that each of its facilities is maintained in good repair in order to participate in the School Facility Program and the Deferred Maintenance Program. This tool is intended to assist school districts and county offices of education in that determination."]
[]
[]
[]
[null,null,null,null,null,null,null,null,null,"Some of the conditions cited in the Good Repair Standard represent items that are critical to the health and safety of pupils and staff. Any deficiencies in these items require immediate attention and, if left unmitigated, could cause severe and immediate injury, illness or death of the occupants. They constitute extreme deficiencies and indicate that the particular building system evaluated failed to meet the standard of good repair at that school site. These critical conditions are identified with underlined text followed by an (X) on the Good Repair Standard. If the underlined statement is not true, then there is an extreme deficiency (to be marked as an “X” on the Evaluation Detail) resulting in a “poor” rating for the applicable category. It is important to note that the list of extreme deficiencies noted in the Good Repair Standard is not exhaustive. Any other deficiency not included in the criteria but meeting the definition above can be noted by the evaluator and generate a poor rating."]
[]
[]
[]
[]
[]
[]
[]
["County superintendents are required to annually visit the schools in the county of his or her office as determined by EC Section 1240. Further, EC Section 1240(c)(2)(I), states the priority objective of the visits made shall be to determine the status of the condition of a facility that poses an emergency or urgent threat to the health or safety of pupils or staff as defined in district policy, or as defined by EC Section 17592.72(c) and the accuracy of data reported on the school accountability report card with the respect to the safety, cleanliness, and adequacy of school facilities, including good repair as required by EC Sections 17014, 17032.5, 17070.75, and 17089. This tool is also intended to assist county offices of education in performing these functions."]
[]
[]
[]
[]
[null,null,null,null,null,null,null,null,null,"Part II, Evaluation Detail is a site inspection template to be used to evaluate the areas of a school on a category by category basis. The design of the inspection template allows for the determination of the scope of conditions across campus. In evaluating each area or space, the user should review each of the 15 categories identified in the Good Repair Standard and make a determination of whether a particular area is in good repair. Once the determination is made, it should be recorded on the Evaluation Detail, as follows:"]
[]
[]
[]
[]
[]
[]
["The EC also allows individual entities to adopt a local evaluation instrument to be used in lieu of the FIT provided the local instrument meets the criteria specified in EC Section 17002(d) and as implemented in the FIT. Any evaluation instrument adopted by the local educational agency for purpose of determining whether a school facility is maintained in good repair may include any number of additional items but must minimally include the criteria and rating scheme contained in the FIT."]
[null,null,null,null,null,null,null,null,null,"OK","No Deficiency - Good Repair: Mark \"OK\" if all statements in the Good Repair Standard are true, and there is no indication of a deficiency in the specific category."]
[]
[]
[null,null,null,null,null,null,null,null,null,"D","Deficiency: Mark “D” if one or more statement(s) in the Good Repair Standard for the specific category is not true, or if there is other clear evidence of the need for repair."]
[]
[]
[null,null,null,null,null,null,null,null,null,"X","Extreme Deficiency: Indicate “X” if the area has a deficiency that is considered an “Extreme Deficiency” in the Good Repair Standard or there is a condition that qualifies as an extreme deficiency but is not noted in the Good Repair Standard."]
[]
[]
[]
[null,null,null,null,null,null,null,null,null,"NA","Not Applicable: If the Good Repair Standard category (building system or component) does not exist in the area evaluated, mark “NA”."]
[]
["STATE OF CALIFORNIA",null,null,null,null,null,null,null,null,null,null,null,null,null,"STATE ALLOCATION BOARD"]
["FACILITY INSPECTION TOOL",null,null,null,null,null,null,null,null,null,null,null,null,null,null,null,"OFFICE OF PUBLIC SCHOOL CONSTRUCTION"]
["SCHOOL FACILITY CONDITIONS EVALUATION"]
["(REV 04/22)",null,null,null,null,null,null,null,null,null,null,null,null,null,null,"Page 2 of 7"]
[]
["Below are suggested methods for evaluating various systems and areas:",null,null,null,null,null,null,null,null,"Part III includes the Category Totals and Ranking, the Overall Rating, and a section for Comments and Rating Explanation."]
[]
["• Gas and Sewer are major building systems that may span the entire school campus but may not be evident as applicable building systems in each classroom or common areas. However, because a deficiency in either of these systems could become evident and present a health and safety threat anywhere on campus, the user should not mark “NA” and should instead include an evaluation of these systems in each building space.",null,null,null,null,null,null,null,null,"Once the inspector completes the site inspection, he or she must total the number of areas evaluated. The inspector must also count all of the spaces deemed in good repair, deficient, extremely deficient, or not applicable under each of the 15 sections. Next, the evaluator must determine the condition of each section by taking the ratio of the number of areas deemed in good repair to the number of areas being evaluated (after subtracting non-applicable spaces from the total number of areas evaluated). If any of the 15 sections received a rating of extreme deficiency, the ratio (i.e., the percentage of good repair) for that section and the category the section is in should default to zero. The total percent per category (A through H) is determined by the total of all percentages of systems in good repair divided by the number of sections in that category. For example, to determine the total percent for the Structural category, add the percentages for the Structural Damage and Roof sections and divide the result by two."]
[]
[]
[]
[]
[]
["• Roofs can be easily evaluated for stand alone areas, such as portable classrooms. For permanent buildings containing several areas to be evaluated, roofs should be considered as parts of individual areas in order to accurately account for a scope of any roofing deficiency. For example, a 10 classroom building contains damaged gutters on one side of the building, spanning across five classrooms. Therefore, an evaluator should mark five classrooms as deficient in the roof category and the other five classrooms as in good repair, assuming there are no other visible deficiencies related to roofing."]
[]
[]
[]
[]
[]
[]
[null,null,null,null,null,null,null,null,null,"Next, the overall school site score is determined by computing the average percentage rating of the eight categories (i.e., the total of all percentages divided by eight). Finally, the rater should determine the overall School Rating by applying the Percentage Range in the table provided in Part III to the average percentage calculated and taking into consideration the Rating Description provided in the same table."]
["• Overall Cleanliness is intended to be used to evaluate the cleanliness of each space. For example, a user should note a deficiency due to dirty surfaces in Overall Cleanliness, rather than Interior Surfaces. At the same time, the user should note such deficiency only in Overall Cleanliness in order to avoid accounting for such deficiency twice, i.e. in two sections."]
[]
[]
[]
[null,null,null,null,null,null,null,null,null,"*Although the FIT is designed to evaluate each school site within a reasonable range of facility conditions, it is possible that an evaluator may identify critical facility conditions that result in an Overall School Rating that does not reflect the urgency and severity of those deficiencies and/or does not match the rating’s Description in Part III. In such instances, the evaluator may reduce the resulting school score by one or more grade categories and describe the reasons for the reduction in the space provided for Comments and Rating Explanation."]
["• The tool is designed to evaluate stand-alone restrooms as separate areas. However, restrooms contained within other spaces, such as a kindergarten classroom or a library, can be evaluated as part of that area under Restrooms. If the area evaluated does not contain a restroom, Restrooms should be marked “NA.”"]
[]
[]
[]
["• Drinking fountains can exist within individual classrooms or areas, right outside of classrooms or restrooms or other areas, or as stand alone fixtures on playgrounds and sports fields. If a drinking fountain or a set of fountains is located inside a building or immediately outside the area being evaluated, it should be included in the evaluation of that area under Drinking Fountains. If a fountain is located on the school grounds, it should be evaluated as part of that outside space. If there is no drinking fountain in the area evaluated, Drinking Fountains should be marked “NA.”"]
[]
[]
[null,null,null,null,null,null,null,null,null,"When completing Part III of the FIT, the inspector should note the date and time of the inspection as well as weather conditions and any other pertinent inspection information in the specific areas provided and utilize the Comments and Rating Explanation Section if needed."]
[]
[]
[]
["• Playgrounds/School Grounds, should be evaluated as separate areas by dividing a campus into sections with defined borders. In this case, several sections of the good repair criteria would not apply to the evaluation, as they do not exist outside of physical building areas, such as Structural Damage and Fire Safety, for example.",null,null,null,null,null,null,null,null,"When completing Part III of the FIT, the school district should be provided the opportunity to provide comments and utilize the Comments and Rating Explanation Section if needed."]

{"sheet":"I.Good Repair Standard","index":1,"n_rows":121,"n_cols":17,"rows_kept":121,"cut":false,"hidden":false,"merged":[[120,0,120,7],[110,9,110,16],[116,9,116,16],[115,9,115,16],[117,9,117,16],[118,9,118,16],[105,0,105,7],[106,0,106,7],[107,0,107,7],[108,0,108,7],[109,0,109,7],[110,0,110,7],[111,0,111,7],[112,0,112,7],[113,0,113,7],[116,0,116,7],[118,0,118,7],[109,9,109,16],[114,9,114,16],[113,9,113,16],[119,0,119,7],[117,0,117,7],[82,0,82,7],[83,0,83,7],[84,0,84,7],[74,0,74,7],[112,9,112,16],[89,9,89,16],[111,9,111,16],[52,9,52,17],[53,9,53,17],[54,9,54,17],[86,9,86,16],[94,9,94,16],[90,9,90,16],[92,9,92,16],[72,9,72,16],[108,9,108,16],[107,9,107,16],[87,9,87,16],[104,9,104,16],[105,9,105,16],[95,10,95,15],[57,0,57,7],[64,0,64,7],[57,9,57,17],[91,9,91,16],[93,9,93,16],[106,9,106,16],[26,0,26,7],[27,0,27,7],[28,0,28,7],[38,0,38,7],[39,0,39,7],[37,0,37,7],[36,0,36,7],[43,9,43,17],[69,9,69,16],[70,9,70,16],[71,9,71,16],[77,9,77,16],[78,9,78,16],[88,9,88,16],[75,9,75,16],[85,9,85,16],[51,9,51,17],[55,9,55,17],[56,9,56,17],[81,0,81,7],[65,0,65,7],[95,0,95,7],[89,0,89,7],[99,0,99,7],[85,0,85,7],[115,0,115,7],[93,0,93,7],[103,0,103,7],[104,0,104,7],[101,0,101,7],[102,0,102,7],[90,0,90,7],[96,0,96,7],[97,0,97,7],[98,0,98,7],[94,0,94,7],[100,0,100,7],[91,0,91,7],[92,0,92,7],[88,0,88,7],[86,0,86,7],[87,0,87,7],[5,9,5,16],[6,9,6,16],[8,9,8,16],[56,0,56,7],[41,9,41,17],[42,9,42,17],[3,15,3,16],[22,0,22,7],[23,0,23,7],[14,0,14,6],[18,0,18,2],[5,0,5,4],[10,0,10,1],[40,0,40,7],[41,0,41,7],[42,0,43,7],[48,0,48,6],[47,0,47,7],[24,0,24,7],[29,0,29,7],[30,0,30,7],[25,0,25,7],[32,0,32,7],[33,0,34,7],[7,9,7,16],[40,9,40,17],[44,9,44,17],[45,9,45,17],[46,9,46,17],[47,9,47,17],[48,9,48,17],[49,9,49,17],[50,9,50,17],[23,9,23,17],[24,9,24,17],[34,9,34,17],[35,9,35,17],[36,9,36,17],[37,9,37,17],[38,9,38,17],[39,9,39,17],[25,9,25,17],[26,9,26,17],[27,9,27,17],[28,9,28,17],[29,9,29,17],[30,9,30,17],[31,9,31,17],[32,9,32,17],[33,9,33,17],[59,0,59,1],[65,9,65,16],[66,9,66,16],[73,9,73,16],[76,9,76,16],[75,0,75,6],[46,0,46,7],[53,0,53,7],[54,0,55,7],[67,0,67,7],[68,0,68,7],[69,0,69,7],[70,0,70,7],[71,0,71,7],[72,0,72,7],[67,9,67,16],[68,9,68,16],[66,0,66,7],[62,15,62,16],[58,9,58,17]]}
["STATE OF CALIFORNIA",null,null,null,null,null,null,null,null,null,null,null,null,null,null,null,"STATE ALLOCATION BOARD"]
["FACILITY INSPECTION TOOL",null,null,null,null,null,null,null,null,null,null,null,null,null,null,null,"OFFICE OF PUBLIC SCHOOL CONSTRUCTION"]
["SCHOOL FACILITY CONDITIONS EVALUATION"]
["(REV 04/22)",null,null,null,null,null,null,null,null,null,null,null,null,null,null,"Page 3 of 7"]
[]
["PART I: GOOD REPAIR STANDARD",null,null,null,null,null,null,null,null,"b. An area should appear to be clean with minimal dirt, dust, or buildup. Floors and"]
[null,null,null,null,null,null,null,null,null,"    carpets should appear to have been swept or cleaned within the last week. "]
["(X): If underlined statement is not true, then this is an extreme deficiency (marked as an",null,null,null,null,null,null,null,null,"    Light fixtures and all bulbs are working properly. Facilities area adequately"]
[" “X”) on the Evaluation Detail resulting in a “poor” rating for the applicable category.",null,null,null,null,null,null,null,null,"    stocked and odor free. (OK)"]
[null,null,null,null,null,null,null,null,null,"c. An area marked as \"Deficiency\" would appear to not have been cleaned in "]
["Gas Leaks",null,null,null,null,null,null,null,null,"       the last two weeks and carpet may look dull, matted, or stained. Corners of"]
["Gas systems and pipes appear safe, functional, and free of leaks. \n",null,null,null,null,null,null,null,null,"       the room may have a recognizable amount of dirt or grime buildup. Floors do"]
["Examples include but are not limited to the following:",null,null,null,null,null,null,null,null,"       not appear to have been swept or vacuumed in two weeks. Some light "]
[null,null,null,null,null,null,null,null,null,"       fixtures are dirty and fewer than five percent of the bulbs have burned out."]
["a. There is no odor that would indicate a gas leak. (X)",null,null,null,null,null,null,null,null,"       Daily trash has not been taken out. (D)"]
["b. Gas pipes are not broken and appear to be in good working order. (X)",null,null,null,null,null,null,null,null,"d. An area marked as having an \"Extreme Deficiency\" would appear to be "]
["c. Other",null,null,null,null,null,null,null,null,"       dirty, dingy, or scuffed with an evident buildup of dust, dirt, stains, or trash."]
[null,null,null,null,null,null,null,null,null,"       Floors have not been swept or vacuumed in over two weeks. Light fixtures"]
["Mechanical Systems",null,null,null,null,null,null,null,null,"       are dirty and more than five percent of the bulbs have burned out. There is"]
["Heating, ventilation, and air conditioning systems (HVAC) as applicable are functional",null,null,null,null,null,null,null,null,"       trash overflow and the area being evaluated has a foul odor. (X)"]
[" and unobstructed. Examples include but are not limited to the following:",null,null,null,null,null,null,null,null,"e. Area(s) evaluated is free of unabated graffiti."]
[null,null,null,null,null,null,null,null,null,"f.  Other"]
["a. The HVAC system is operable. (X)"]
["b. The facilities are ventilated (via mechanical or natural ventilation).",null,null,null,null,null,null,null,null,"Part IIb (Optional) - The Cleanliness Detail worksheet may be used to evaluate the Overall"]
["c. The ventilation units are unobstructed and vents and grills are without evidence",null,null,null,null,null,null,null,null,"Cleanliness of each area. Based on Part IIb, use the following to complete Part IIa:"]
["of excessive dirt or dust.",null,null,null,null,null,null,null,null,"The district may choose how to report maintenance and custodial staff. The district may"]
["d. There appears to be an adequate air supply to all classrooms, work spaces, ",null,null,null,null,null,null,null,null,"report staffing at the site or district level.  Staffing may be based on assigned staff or"]
["and facilities (i.e. no strong odor is present, air is not stuffy)",null,null,null,null,null,null,null,null,"represented as Full-Time Equivalent increments."]
["e. Interior temperatures appear to be maintained within normally accepted ranges.",null,null,null,null,null,null,null,null,"a. If 75.0 percent or more of the review is \"Yes\", the area should be rated clean (OK)."]
["f. The ventilation units are not generating any excessive noise or vibrations.",null,null,null,null,null,null,null,null,"b. If 50 - 74.9 percent  of the review is \"Yes\", the area should be rated \"Deficient (D)\"."]
["g. Other",null,null,null,null,null,null,null,null,"c. If 49.9 percent or less of the review is \"Yes\", the area should be rated Extreme"]
[null,null,null,null,null,null,null,null,null,"    Deficiency (X)"]
["Sewer"]
["Sewer line stoppage is not evident. Examples include but are not limited to the following:",null,null,null,null,null,null,null,null,"1. Floors swept, vacuumed, and/or mopped. Free of spots stains, and build up."]
[null,null,null,null,null,null,null,null,null,"2. Walls and Doors free of spots and grime."]
[null,null,null,null,null,null,null,null,null,"3. Desk and Counters clean."]
["a. There are no obvious signs of flooding caused by sewer line back-up in the ",null,null,null,null,null,null,null,null,"4. Furniture dusted and clean."]
["facilities or on the school grounds. (X)",null,null,null,null,null,null,null,null,"5. Baseboards and window sills dusted and clean."]
["b. The sanitary system controls odors as designed.",null,null,null,null,null,null,null,null,"6. Light fixtures clean."]
["c. Other",null,null,null,null,null,null,null,null,"7. Sink clean and drains working properly."]
[null,null,null,null,null,null,null,null,null,"8. Trash cans are empty and clean. The ground is free of trash. Floors and furniture are free"]
["Interior Surfaces (Floors, Ceilings, Walls, and Window Casings)",null,null,null,null,null,null,null,null,"of gum and/or other food residue."]
["Interior surfaces appear to be clean, safe, and functional. Examples include but are not limited to the following:",null,null,null,null,null,null,null,null,"9. Windows are free from damage, clean, and in working condition."]
[null,null,null,null,null,null,null,null,null,"10. Water fountains, including handles/buttons, are clean and in working condition."]
[null,null,null,null,null,null,null,null,null,"11. Toilets and bathroom sinks are clean and in working condition."]
[null,null,null,null,null,null,null,null,null,"12. Mirrors and Hand Dryers are clean, intact, and in working condition."]
["a. Walls are free of hazards from tears and holes.",null,null,null,null,null,null,null,null,"13. Bathroom supplies are stocked and in working condition."]
["b. Flooring is free of hazards from torn carpeting, missing floor tiles, holes.",null,null,null,null,null,null,null,null,"14. Area is free of graffitti."]
["c. Ceiling is free of hazards from missing ceiling tiles and holes.",null,null,null,null,null,null,null,null,"15. Landscaping - Maintained sufficiently to not hinder student and staff."]
["d. There is no evidence of water damage (e.g. no condensation, dampness, "]
["staining, warping, peeling, mineral deposits, etc.)",null,null,null,null,null,null,null,null,"Pest/Vermin Infestation"]
["e. Other",null,null,null,null,null,null,null,null,"Pest or vermin infestation are not evident. Examples include but are not limited to the\nExamples include but are not limited to the following:"]
[null,null,null,null,null,null,null,null,null,"following:"]
["Overall Cleanliness",null,null,null,null,null,null,null,null,"a. There is no evidence of a major pest or vermin infestation. (X)"]
["School grounds, buildings, common areas, surfaces, and individual rooms appear to have been cleaned regularly. Examples include but are not limited to the following:",null,null,null,null,null,null,null,null,"b. There are no holes in the walls, floors, or ceilings."]
[null,null,null,null,null,null,null,null,null,"c. Rodent droppings or insect skins are not evident."]
["a. Restrooms, drinking fountains, and food preparation or serving areas ",null,null,null,null,null,null,null,null,"d. Odor caused by a pest or vermin infestation is not evident."]
["    appear to have been cleaned each day that school is in session.",null,null,null,null,null,null,null,null,"e. There are no live rodents observed."]
[null,null,null,null,null,null,null,null,null,"f. Other"]
["STATE OF CALIFORNIA",null,null,null,null,null,null,null,null,null,null,null,null,null,null,null,"STATE ALLOCATION BOARD"]
["FACILITY INSPECTION TOOL",null,null,null,null,null,null,null,null,null,null,null,null,null,null,null,"OFFICE OF PUBLIC SCHOOL CONSTRUCTION"]
["SCHOOL FACILITY CONDITIONS EVALUATION"]
["(REV 04/22)",null,null,null,null,null,null,null,null,null,null,null,null,null,null,"Page 4 of 7"]
[]
["Electrical (Interior and Exterior)"]
["1. There is no evidence that any portion of the school has a power failure. (X)",null,null,null,null,null,null,null,null,"c. There does not appear to be damaged tiles or other circumstances that may "]
[null,null,null,null,null,null,null,null,null,"indicate asbestos exposure."]
["2. Electrical systems, components, and equipment appear to be working properly. Examples include but are not limited to the following:",null,null,null,null,null,null,null,null,"d. Surfaces (including floors, ceilings, walls, window casings, HVAC grills) appear "]
["a. There are no exposed electrical wires. Electrical equipment is properly ",null,null,null,null,null,null,null,null,"to be free of mildew, mold odor and visible mold."]
["covered and secured from pupil access. (X)",null,null,null,null,null,null,null,null,"e. Other"]
["b. Outlets, access panels, switch plates, junction boxes and fixtures are "]
["properly covered and secured from pupil access.",null,null,null,null,null,null,null,null,"Structural Damage"]
["c. Other",null,null,null,null,null,null,null,null,"There does not appear to be structural damage that has created or could create hazardous"]
[null,null,null,null,null,null,null,null,null,"or uninhabitable conditions. Examples include but are not limited to the following:"]
["3. Lighting appears to be adequate and working properly, including exterior lights."]
["    Examples include but are not limited to the following:",null,null,null,null,null,null,null,null,"a. Severe cracks are not evident. (X)"]
["a. Lighting appears to be adequate.",null,null,null,null,null,null,null,null,"b. Ceilings & floors are not sloping or sagging beyond their intended design. (X)"]
["b. Lighting is not flickering.",null,null,null,null,null,null,null,null,"c. Posts, beams, supports for portable classrooms, ramps, and other structural "]
["c. There is no unusual hum or noise from the light fixtures.",null,null,null,null,null,null,null,null,"building members appear to be intact, secure and functional as designed. (X)"]
["d. Other",null,null,null,null,null,null,null,null,null,"d. There is no visible evidence of severe cracks, dry rot, mold, or damage that "]
[null,null,null,null,null,null,null,null,null,null,"undermines the structural components. (X)\ne. Other"]
["Restrooms",null,null,null,null,null,null,null,null,null,"e. Other"]
["Restrooms in the vicinity of the area being evaluated appear to be accessible during"]
["school hours, clean, functional and in compliance with SB 892 (EC Section 35292.5)",null,null,null,null,null,null,null,null,"When completing Part III of the FIT, the inspector should note the date and time of the inspection as well as weather conditions and any other pertinent inspection information in the specific areas provided and utilize the Comments and Rating Explanation Section if needed."]
["and AB 367 (EC Section 35292.6). The following are examples of compliance with"]
["SB 892 and AB 367:",null,null,null,null,null,null,null,null,"Roofs (observed from the ground, inside/outside the building)"]
[null,null,null,null,null,null,null,null,null,"Roof systems appear to be functioning properly. Examples include but are not\nare not limited to the following:"]
["a. Restrooms are maintained and cleaned regularly.",null,null,null,null,null,null,null,null,"limited to the following:"]
["b. Restrooms are fully operational.",null,null,null,null,null,null,null,null,"a. Roofs, gutters, roof drains, and down spouts are free of visible damage."]
["c. Restrooms are stocked with toilet paper, menstrual products, soap, and paper",null,null,null,null,null,null,null,null,"b. Roofs, gutters, roof drains, and down spouts are intact."]
["    towels.",null,null,null,null,null,null,null,null,"c. Other"]
["d. Restrooms are open during school hours."]
["e. Other",null,null,null,null,null,null,null,null,"Playground/School Grounds"]
[null,null,null,null,null,null,null,null,null,"The playground equipment and school grounds in the vicinity of the area being evaluated appear to be clean, safe, and functional. \nExamples include but are not limited to the following:"]
["Sinks/Fountains (Inside and Outside)",null,null,null,null,null,null,null,null,"evaluated appear to be clean, safe, and functional. Examples include but are not"]
["Drinking fountains appear to be accessible and functioning as intended. ",null,null,null,null,null,null,null,null,null,"limited to the following:"]
["Examples include but are not limited to the following:",null,null,null,null,null,null,null,null,"a. Significant cracks, trip hazards, holes and deterioration are not found."]
["a. Drinking fountains are accessible.",null,null,null,null,null,null,null,null,"b. Open “S” hooks, protruding bolt ends, and sharp points/edges are not"]
["b. Water pressure is adequate.",null,null,null,null,null,null,null,null," found in the playground equipment."]
["c. A leak is not evident.",null,null,null,null,null,null,null,null,"c. Seating, tables, and equipment are functional and free of significant cracks."]
["d. There is no moss, mold, or excessive staining on the fixtures.",null,null,null,null,null,null,null,null,"d. There are no signs of drainage problems, such as flooded areas, eroded "]
["e. The water is clear and without unusual taste or odor.",null,null,null,null,null,null,null,null,"soil, water damage to asphalt, or clogged storm drain inlets."]
["f. Other",null,null,null,null,null,null,null,null,"e. Other"]
[]
["Fire Safety",null,null,null,null,null,null,null,null,"Windows/Doors/Gates/Fences (Interior and exterior)"]
["The fire equipment and emergency systems appear to be functioning properly.",null,null,null,null,null,null,null,null,"Conditions that pose a safety and/or security risk are not evident. Examples include but are not limited to the following:"]
["Examples include but are not limited to the following:",null,null,null,null,null,null,null,null,"include but are not limited to the following:"]
["a. The fire sprinklers appear to be in working order (e.g., there are no missing or ",null,null,null,null,null,null,null,null,"a. There is no exposed broken glass accessible to pupils and staff. (X)"]
["damaged sprinkler heads). (X)",null,null,null,null,null,null,null,null,"b. Exterior doors and gates are functioning and do not pose a security risk. (X)"]
["b. Emergency alarms appear to be functional. (X)",null,null,null,null,null,null,null,null,"c. Windows are intact and free of cracks."]
["c. Emergency exit signs function as designed, exits are unobstructed. (X)",null,null,null,null,null,null,null,null,"d. Windows are functional and open, close, and lock as designed, unless there is "]
["d. Fire extinguishers are current and placed in all required areas.",null,null,null,null,null,null,null,null,"a valid reason they should not function as designed."]
["e. Fire alarms pull stations are clearly visible.",null,null,null,null,null,null,null,null,"e. Doors are intact."]
["f. Other",null,null,null,null,null,null,null,null,"f. Doors are functional and open, close, and lock as designed, unless there is a"]
[null,null,null,null,null,null,null,null,null,"valid reason they should not function as designed."]
["Hazardous Materials (Interior and Exterior)",null,null,null,null,null,null,null,null,"g. Gates and fences appear to be functional."]
["There does not appear to be evidence of hazardous materials that may pose a threat to",null,null,null,null,null,null,null,null,"h. Gates and fences are intact and free of holes and other conditions that could "]
["pupils or staff. Examples include but are not limited to the following:",null,null,null,null,null,null,null,null,"present a safety hazard to pupils, staff, or others."]
["a. Hazardous chemicals, chemical waste, and flammable materials are stored ",null,null,null,null,null,null,null,null,"i. Other"]
["properly (e.g. locked and labeled properly). (X)"]
["b. Paint is not peeling, chipping, or cracking."]

{"sheet":"IIa.Evaluation Detail","index":2,"n_rows":36,"n_cols":17,"rows_kept":36,"cut":false,"hidden":false,"merged":[[35,7,35,8],[33,1,33,3],[34,7,34,8],[14,0,15,0],[14,1,15,1],[16,1,17,1],[18,1,19,1],[18,0,19,0],[16,0,17,0],[26,0,27,0],[26,1,27,1],[17,3,17,16],[22,0,23,0],[24,0,25,0],[22,1,23,1],[24,1,25,1],[20,1,21,1],[20,0,21,0],[32,0,33,0],[29,3,29,16],[28,1,29,1],[31,2,31,16],[28,0,29,0],[32,7,32,8],[33,7,33,8],[27,3,27,16],[23,3,23,16],[25,3,25,16],[10,1,11,1],[12,1,13,1],[7,0,9,0],[7,1,9,1],[10,0,11,0],[0,12,0,16],[8,2,9,2],[8,6,9,6],[11,3,11,16],[13,3,13,16],[1,13,1,16],[3,15,3,16],[5,8,5,14],[8,11,9,11],[5,0,5,2],[5,3,5,4],[8,7,9,7],[8,8,9,8],[12,0,13,0],[8,10,9,10],[8,5,9,5],[5,6,5,7],[8,14,9,14],[8,15,9,15],[8,9,9,9],[8,4,9,4],[8,12,9,12],[8,13,9,13],[8,3,9,3],[8,16,9,16],[15,3,15,16],[19,3,19,16],[21,3,21,16]]}
["STATE OF CALIFORNIA",null,null,null,null,null,null,null,null,null,null,null,"STATE ALLOCATION BOARD"]
["FACILITY INSPECTION TOOL",null,null,null,null,null,null,null,null,null,null,null,null,"OFFICE OF PUBLIC SCHOOL CONSTRUCTION"]
["SCHOOL FACILITY CONDITIONS EVALUATION"]
["(REV 04/22)",null,null,null,null,null,null,null,null,null,null,null,null,null,null,"Page 5 of 7"]
[]
["PART IIa: EVALUATION DETAIL",null,null,"Date of Inspection:",null," ","School Name:",null," "]
[]
["Building / Area Name","Estimated Square Footage",1,2,3,4,5,6,7,8,9,10,11,12,13,14,15]
[null,null,"GAS LEAKS","MECH/HVAC","SEWER","INTERIOR SURFACES","OVERALL CLEANLINESS","PEST/VERMIN INFESTATION","ELECTRICAL","RESTROOM","SINKS/ FOUNTAINS","FIRE SAFETY","HAZARDOUS MATERIALS","STRUCTURAL DAMAGE","ROOFS","PLAYGROUND/SCHOOL GROUNDS","WINDOWS/ DOORS/ GATES/FENCES"]
[]
[]
[null,null,"COMMENTS:"]
[]
[null,null,"COMMENTS:"]
[]
[null,null,"COMMENTS:"]
[]
[null,null,"COMMENTS:"]
[]
[null,null,"COMMENTS:"]
[]
[null,null,"COMMENTS:"]
[]
[null,null,"COMMENTS:"]
[]
[null,null,"COMMENTS:"]
[]
[null,null,"COMMENTS:"]
[]
[null,null,"COMMENTS:"]
["District's Plan to Address:"]
["Deficiencies Noted in Prior Year?"]
[null,null,null,null,null,null,"OK"," = Good Repair"]
[null,"Use additional Building/Area Lines as necessary.",null,null,null,"Marks:","D"," = Deficiency"]
[null,null,null,null,null,null,"X"," = Extreme Deficiency"]
[null,null,null,null,null,null,"N/A"," = Not Applicable"]

{"sheet":"IIb.Cleanliness Detail","index":3,"n_rows":38,"n_cols":21,"rows_kept":38,"cut":false,"hidden":false,"merged":[[34,0,35,0],[26,1,27,1],[33,2,33,17],[28,0,29,0],[28,1,29,1],[30,0,31,0],[30,1,31,1],[26,0,27,0],[35,1,35,3],[35,6,35,7],[24,0,25,0],[24,1,25,1],[20,0,21,0],[20,1,21,1],[22,0,23,0],[22,1,23,1],[16,0,17,0],[16,1,17,1],[18,0,19,0],[18,1,19,1],[10,13,11,13],[0,14,0,17],[10,14,11,14],[10,15,11,15],[9,1,11,1],[10,2,11,2],[10,3,11,3],[10,4,11,4],[10,12,11,12],[5,0,5,2],[6,0,6,1],[7,0,7,1],[3,16,3,17],[5,3,5,4],[5,6,5,7],[5,8,5,15],[10,16,11,16],[36,6,36,7],[37,6,37,7],[1,14,1,17],[14,0,15,0],[14,1,15,1],[10,5,11,5],[10,7,11,7],[10,8,11,8],[10,9,11,9],[10,10,11,10],[10,11,11,11],[12,1,13,1],[10,17,11,17],[10,6,11,6],[9,0,11,0],[12,0,13,0]]}
["STATE OF CALIFORNIA",null,null,null,null,null,null,null,null,null,null,null,null,null,"STATE ALLOCATION BOARD"]
["FACILITY INSPECTION TOOL",null,null,null,null,null,null,null,null,null,null,null,null,null,"OFFICE OF PUBLIC SCHOOL CONSTRUCTION"]
["SCHOOL FACILITY CONDITIONS EVALUATION"]
["(REV 04/22)",null,null,null,null,null,null,null,null,null,null,null,null,null,null,null,"Page 6 of 7"]
[]
["PART IIb: CLEANLINESS DETAIL",null,null,"Date of Inspection:",null," ","School Name:",null," "]
["NUMBER OF MAINTENANCE STAFF IN THE DISTRICT OR AT SITE (SPECIFY):"]
["NUMBER OF CUSTODIAL STAFF ASSIGNED TO SITE:"]
[]
["Building / Area Name","Area Characteristics\n(Grade level served, events, traffic volume, public usage, etc.)",1,2,3,4,5,6,7,8,9,10,11,12,13,14,15,"Rating"]
[null,null,"Floors","Walls & Doors","Desks & Counters","Furniture","Baseboards /Window Sill","Light Fixtures","Sinks","Trash / Refuse","Windows","Water Fountains","Toilets","Mirrors & Hand Dryers","Bathroom Supplies","Graffiti","Landscaping"]
[null,null,null,null,null,null,null,null,null,null,null,null,null,null,null,null,null,null,"Total Yes/No","Yes","% Yes"]
[null," ",null,null,null,null,null,null,null,null,null,null,null,null,null,null,null,{"$f":"IF(U13>=75%, \"OK\", IF(U13>49.9%, \"D\", IF(OR(U13>0%,AND(S13>0,T13=0)), \"X\", \"\")))","v":""},{"$f":"COUNTA(C13:Q13)-COUNTIF(C13:Q13,\"N/A\")","v":0},{"$f":"COUNTIF(C13:Q13,\"Yes\")","v":0},{"$f":" IFERROR(T13/S13,0)","v":0}]
[null,null,"COMMENTS:"]
[null," ",null,null,null,null,null,null,null,null,null,null,null,null,null,null,null,{"$f":"IF(U15>=75%, \"OK\", IF(U15>49.9%, \"D\", IF(OR(U15>0%,AND(S15>0,T15=0)), \"X\", \"\")))","v":""},{"$f":"COUNTA(C15:Q15)-COUNTIF(C15:Q15,\"N/A\")","v":0},{"$f":"COUNTIF(C15:Q15,\"yes\")","v":0},{"$f":" IFERROR(T15/S15,0)","v":0}]
[null,null,"COMMENTS:"]
[null," ",null,null,null,null,null,null,null,null,null,null,null,null,null,null,null,{"$f":"IF(U17>=75%, \"OK\", IF(U17>49.9%, \"D\", IF(OR(U17>0%,AND(S17>0,T17=0)), \"X\", \"\")))","v":""},{"$f":"COUNTA(C17:Q17)-COUNTIF(C17:Q17,\"N/A\")","v":0},{"$f":"COUNTIF(C17:Q17,\"yes\")","v":0},{"$f":" IFERROR(T17/S17,0)","v":0}]
[null,null,"COMMENTS:"]
[null," ",null,null,null,null,null,null,null,null,null,null,null,null,null,null,null,{"$f":"IF(U19>=75%, \"OK\", IF(U19>49.9%, \"D\", IF(OR(U19>0%,AND(S19>0,T19=0)), \"X\", \"\")))","v":""},{"$f":"COUNTA(C19:Q19)-COUNTIF(C19:Q19,\"N/A\")","v":0},0,{"$f":" IFERROR(T19/S19,0)","v":0}]
[null,null,"COMMENTS:"]
[null," ",null,null,null,null,null,null,null,null,null,null,null,null,null,null,null,{"$f":"IF(U21>=75%, \"OK\", IF(U21>49.9%, \"D\", IF(OR(U21>0%,AND(S21>0,T21=0)), \"X\", \"\")))","v":""},{"$f":"COUNTA(C21:Q21)-COUNTIF(C21:Q21,\"N/A\")","v":0},0,{"$f":" IFERROR(T21/S21,0)","v":0}]
[null,null,"COMMENTS:"]
[null," ",null,null,null,null,null,null,null,null,null,null,null,null,null,null,null,{"$f":"IF(U23>=75%, \"OK\", IF(U23>49.9%, \"D\", IF(OR(U23>0%,AND(S23>0,T23=0)), \"X\", \"\")))","v":""},{"$f":"COUNTA(C23:Q23)-COUNTIF(C23:Q23,\"N/A\")","v":0},0,{"$f":" IFERROR(T23/S23,0)","v":0}]
[null,null,"COMMENTS:"]
[null,null,null,null,null,null,null,null,null,null,null,null,null,null,null,null,null,{"$f":"IF(U25>=75%, \"OK\", IF(U25>49.9%, \"D\", IF(OR(U25>0%,AND(S25>0,T25=0)), \"X\", \"\")))","v":""},{"$f":"COUNTA(C25:Q25)-COUNTIF(C25:Q25,\"N/A\")","v":0},0,{"$f":" IFERROR(T25/S25,0)","v":0}]
[null,null,"COMMENTS:"]
[null,null,null,null,null,null,null,null,null,null,null,null,null,null,null,null,null,{"$f":"IF(U27>=75%, \"OK\", IF(U27>49.9%, \"D\", IF(OR(U27>0%,AND(S27>0,T27=0)), \"X\", \"\")))","v":""},{"$f":"COUNTA(C27:Q27)-COUNTIF(C27:Q27,\"N/A\")","v":0},{"$f":"COUNTIF(C27:Q27,\"yes\")","v":0},{"$f":" IFERROR(T27/S27,0)","v":0}]
[null,null,"COMMENTS:"]
[null,null,null,null,null,null,null,null,null,null,null,null,null,null,null,null,null,{"$f":"IF(U29>=75%, \"OK\", IF(U29>49.9%, \"D\", IF(OR(U29>0%,AND(S29>0,T29=0)), \"X\", \"\")))","v":""},{"$f":"COUNTA(C29:Q29)-COUNTIF(C29:Q29,\"N/A\")","v":0},0,{"$f":" IFERROR(T29/S29,0)","v":0}]
[null,null,"COMMENTS:"]
[null,null,null,null,null,null,null,null,null,null,null,null,null,null,null,null,null,{"$f":"IF(U31>=75%, \"OK\", IF(U31>49.9%, \"D\", IF(OR(U31>0%,AND(S31>0,T31=0)), \"X\", \"\")))","v":""},{"$f":"COUNTA(C31:Q31)-COUNTIF(C31:Q31,\"N/A\")","v":0},0,{"$f":" IFERROR(T31/S31,0)","v":0}]
[null,null,"COMMENTS:"]
["District's Plan to Address:"]
["Deficiency Noted in Prior Year?"]
[]
[null,"Use additional Building/Area Lines as necessary.",null,null,null,"Yes"," = Clean",null,null,null,null,"*This button will transfer the Rating in Excel column R from this page"]
[null,null,null,null,"Marks:","No"," = Not Clean",null,null,null,null," to FIT’s column 5 on the Evaluation Detail page, for each Building / Area. "]
[null,null,null,null,null,"N/A"," = Not Applicable",null,null,null,null,"It will overwrite existing data (in the Cleanliness column) for the Building Area / Name."]

{"sheet":"III.Totals and Ranking","index":4,"n_rows":87,"n_cols":18,"rows_kept":87,"cut":false,"hidden":false,"merged":[[0,0,0,2],[13,0,13,3],[12,4,12,5],[11,4,11,5],[7,15,7,16],[8,15,8,16],[12,0,12,3],[11,12,11,17],[3,16,3,17],[10,6,10,11],[10,0,10,5],[11,6,11,11],[6,0,6,11],[5,0,5,11],[7,0,7,11],[8,0,8,11],[35,0,35,17],[33,0,33,3],[33,4,33,17],[36,0,36,9],[22,0,22,2],[25,0,25,2],[23,7,23,8],[23,10,23,11],[25,15,25,16],[25,10,25,11],[25,12,25,14],[23,14,23,15],[5,18,5,20],[7,18,7,19],[9,18,9,19],[5,12,5,17],[8,12,8,14],[6,12,6,17],[7,12,7,14],[15,10,15,11],[15,12,15,13],[15,14,15,15],[18,1,18,2],[12,6,12,11],[13,6,13,11],[9,6,9,11],[9,0,9,5],[19,0,20,0],[15,1,16,2],[23,16,23,17],[23,0,23,2],[23,12,23,13],[23,3,23,5],[19,1,19,2],[20,1,20,2],[15,16,15,17],[11,0,11,3],[15,0,18,0],[17,1,17,2],[15,3,15,5],[15,7,15,8]]}
["STATE OF CALIFORNIA",null,null,null,null,null,null,null,null,null,null,null,null,null,null,null,null,"STATE ALLOCATION BOARD"]
["FACILITY INSPECTION TOOL (FIT)",null,null,null,null,null,null,null,null,null,null,null,null,null,null,null,null,"OFFICE OF PUBLIC SCHOOL CONSTRUCTION"]
["SCHOOL FACILITY CONDITIONS EVALUATION"]
["(REV 04/22)",null,null,null,null,null,null,null,null,null,null,null,null,null,null,null,"Page 7 of 7"]
[]
["SCHOOL DISTRICT/COUNTY OFFICE OF EDUCATION",null,null,null,null,null,null,null,null,null,null,null,"COUNTY"]
[]
["SCHOOL SITE",null,null,null,null,null,null,null,null,null,null,null,"SCHOOL TYPE (GRADE LEVELS)",null,null,"NUMBER OF CLASSROOMS ON SITE:"]
[null,null,null,null,null,null,null,null,null,null,null,null,null,null,null,"NUMBER OF RESTROOMS ON SITE:"]
["INSPECTOR'S NAME",null,null,null,null,null,"INSPECTOR'S TITLE",null,null,null,null,null,"NAME  OF DISTRICT REPRESENTATIVE ACCOMPANYING THE INSPECTOR(S) (IF APPLICABLE)"]
[]
["TOTAL ESTIMATED BUILDING VOLUME (CUBIC FEET):",null,null,null,null,null,"TIME OF INSPECTION",null,null,null,null,null,"SITE ENROLLMENT"]
["TOTAL ESTIMATED SITE SQUARE FOOTAGE / ACREAGE:",null,null,null,null,null,"WEATHER CONDITION AT TIME OF INSPECTION"]
["TOTAL ESTIMATED BUILDING SQUARE FOOTAGE:"]
["PART III:  CATEGORY TOTALS AND RANKING (round all calculations to two decimal places)"]
["TOTAL NUMBER OF AREAS EVALUATED","CATEGORY TOTALS",null,"A. SYSTEMS",null,null,"B. INTERIOR","C. CLEANLINESS",null,"D. ELECTRICAL","E. RESTROOMS/FOUNTAINS",null,"F. SAFETY",null,"G. STRUCTURAL",null,"H. EXTERNAL"]
[null,null,null,"GAS LEAKS","MECH/HVAC","SEWER","INTERIOR SURFACES","OVERALL\nCLEANLINESS","PEST/VERMIN INFESTATION","ELECTRICAL","RESTROOMS","SINKS/\nFOUNTAINS","FIRE SAFETY","HAZARDOUS\nMATERIALS","STRUCTURAL\nDAMAGE","ROOFS","PLAYGROUND/ SCHOOL GROUNDS","WINDOWS/DOORS/\nGATES/FENCES"]
[null,"Number of \"OK\"s:",null,0,0,0,0,0,0,0,0,0,0,0,0,0,0,0]
[null,"Number of \"D\"s:",null,0,0,0,0,0,0,0,0,0,0,0,0,0,0,0]
[0,"Number of \"X\"s:",null,0,0,0,0,0,0,0,0,0,0,0,0,0,0,0]
[null,"Number of N/As:",null,0,0,0,0,0,0,0,0,0,0,0,0,0,0,0]
[]
[]
[null,null,null,"NA",null,null,"NA","NA",null,"NA","NA",null,"NA",null,"NA",null,"NA"]
[null,null,null,null," *Note: An extreme deficiency in any area automatically results in a \"poor\" ranking for that category and a zero for \"Total Percent per Category\"."]
["OVERALL RATING:",null,null,"DETERMINE AVERAGE PERCENTAGE OF 8 CATEGORIES ABOVE",null,null,null,null,null,null,{"$f":"SUM(D23:Q23)/0","v":{"$error":"#DIV/0!"}},null,"SCHOOL RATING**"]
[null,null,null,null,"**For School Rating, apply the Percentage Range below to the average percentage determined above, taking into account the rating Description below."]
["PERCENTAGE",null,null,null,null,null,null,null,null,"DESCRIPTION",null,null,null,null,null,null,null,"RATING"]
["99%-100%","The school meets most or all standards of good repair. Deficiencies noted, if any, are not significant and/or impact a very small area of the school.",null,null,null,null,null,null,null,null,null,null,null,null,null,null,null,"EXEMPLARY"]
["90%-98.99%","The school is maintained in good repair with a number of non-critical deficiencies noted. These deficiencies are isolated, and/or resulting from minor wear and tear, and/or in the process of being mitigated.",null,null,null,null,null,null,null,null,null,null,null,null,null,null,null,"GOOD"]
["75.%-89.99%","The school is not in good repair. Some deficiencies noted are critical and/or widespread. Repairs and/or additional maintenance are necessary in several areas of the school site.",null,null,null,null,null,null,null,null,null,null,null,null,null,null,null,"FAIR"]
["0%-74.99%","The school facilities are in poor condition. Deficiencies of various degrees have been noted throughout the site. Major repairs and maintenance are necessary throughout the campus.",null,null,null,null,null,null,null,null,null,null,null,null,null,null,null,"POOR"]
[]
["INSPECTOR'S COMMENTS AND\nRATING EXPLANATION:"]
[]
[]
["DISTRICT'S RESPONSES TO REPORT (Attach additional pages if necessary):"]
[]
[]
[]
[]
[]
[]
[]
[]
[]
[]
[]
[]
[]
[]
[]
[]
[]
[]
[]
[]
[]
[]
[]
[]
[]
[]
[]
[]
[]
[]
[]
[]
[]
[]
[]
[]
[]
[]
[]
[]
[]
[]
[]
[]
[]
[]
[]
[]
[]
[null,null,null,null,null,null,null,null,null,"When completing Part III of the FIT, the inspector should note the date and time of the inspection as well as weather conditions and any other pertinent inspection information in the specific areas provided and utilize the Comments and Rating Explanation Section if needed."]